Cogmind - Beta 13 @@@ ROGUE MODE // 2024.04.02 @ 23:17:12 Player: Nossea Result: Destroyed by Y-45 Defender with Heavy Assault Rifle Performance ------------- Evolutions (1) 500 Regions Visited (3) 600 Robots Destroyed (58) 290 Value Destroyed (1351) 1351 Prototype IDs (3) 60 Alien Tech Used (0) 0 Bonus (0) 0 TOTAL SCORE: 2801 Bonus ------- None Cogmind --------- Core Integrity 0/400 Matter 213/300 Energy 280/280 System Corruption 0% Temperature Cool (48) Movement Treading (160) Location -9/Storage Parts ------- > --- POWER (1) -------- Cooled Ion Engine > --- PROPULSION (4) --- Light Treads Light Treads > --- UTILITY (2) ------ Large Storage Unit Hacking Suite > --- WEAPON (2) ------- Light Cannon Missile Launcher > --- INVENTORY (15) --- Cooled Ion Engine Cooled Ion Engine Cooled Ion Engine Light Treads Light Treads Cooling System Advanced Targeting Computer Advanced Targeting Computer Shield Generator Missile Launcher Datajack Mining Laser Peak State ------------ > --- POWER ------------ Cooled Ion Engine > --- PROPULSION ------- Light Treads Light Treads Light Treads Light Treads > --- UTILITY ---------- Large Storage Unit Hacking Suite > --- WEAPON ----------- Particle Cannon Plasma Cutter > --- INVENTORY -------- Cooled Ion Engine Cooled Ion Engine Cooled Ion Engine Light Treads Light Treads Cooling System Advanced Targeting Computer Advanced Targeting Computer Shield Generator Particle Cannon Light Cannon Missile Launcher Missile Launcher Datajack Mining Laser [Rating: 18] Favorites ----------- Power Light Ion Engine Engine Light Ion Engine Propulsion Light Treads Treads Light Treads Leg Aluminum Leg Utility Large Storage Unit Device Seismic Detector Storage Large Storage Unit Processor Transport Network Coupler Hackware Hacking Suite Weapon Medium Laser Energy Gun Medium Laser Energy Cannon Particle Cannon Ballistic Gun Light Assault Rifle Ballistic Cannon Light Cannon Launcher Missile Launcher Special Weapon Mining Laser Special Melee Weapon Datajack Build | -11 -10 -9 -9 ------- Run | Yrd Mat Mat Sto Slots Evolved 2 | . . 2 . Power . | . . . . Propulsion 2 | . . 2 . Utility . | . . . . Weapon . | . . . . Parts Attached 87 | 9 14 29 35 Power 5 | 1 . 3 1 Engine 5 | 1 . 3 1 Core . | . . . . Reactor . | . . . . Propulsion 21 | 2 . 8 11 Treads 17 | . . 6 11 Leg 4 | 2 . 2 . Wheel . | . . . . Hover . | . . . . Flight . | . . . . Utility 13 | 4 4 3 2 Device 4 | 3 1 . . Storage 7 | 1 3 1 2 Processor 1 | . . 1 . Hackware 1 | . . 1 . Protection . | . . . . Artifact . | . . . . Weapon 48 | 2 10 15 21 Energy Gun 15 | 1 5 9 . Energy Cannon 6 | . . . 6 Ballistic Gun 1 | 1 . . . Ballistic Cannon 5 | . . . 5 Launcher 1 | . . . 1 Special Weapon 19 | . 4 6 9 Impact Weapon . | . . . . Slashing Weapon . | . . . . Piercing Weapon . | . . . . Special Melee Weapon 1 | . 1 . . Unidentified Prototypes 3 | . . 2 1 Parts Lost 11 | . . 5 6 Power 1 | . . 1 . Propulsion 3 | . . 1 2 Utility 1 | . . 1 . Weapon 6 | . . 2 4 Highest Loss Streak 5 | . . 2 5 To Critical Strikes . | . . . . Average Slot Usage (%) 95 | . 100 87 99 Engine 11 | . 14 11 11 Treads 24 | . . 19 43 Leg 11 | . 28 14 . Device 3 | . 14 1 . Storage 11 | . 14 11 11 Processor 2 | . . 7 . Hackware 4 | . . 1 11 Energy Gun 12 | . 16 18 5 Energy Cannon 3 | . . . 9 Ballistic Cannon 1 | . . . 2 Special Weapon 4 | . 7 3 3 Naked Turns . | . . . . Heaviest Build 91 | 12 18 33 91 Greatest Support 80 | 20 20 80 80 Greatest Overweight (x) 1 | . . 1 1 Average Overweight (x) . | . . . . Largest Inventory Capacity 25 | 8 15 15 25 Average Capacity 12 | 7 9 13 15 Most Carried 15 | 8 10 15 15 Average Carried 11 | 5 9 11 14 Final Capacity 15 | 8 10 15 15 Final Carried 15 | 8 10 15 12 Class Distribution -------------------- 63% | Mutant 36% | Scavenger-Mutant Dominant Class ---------------- Mutant | -10/Materials Mutant | -9/Materials Scavenger-Mutant | -9/Storage Resources | -11 -10 -9 -9 ----------- Run | Yrd Mat Mat Sto Matter Collected 1002 | 309 . 409 284 Remotely . | . . . . Salvage Created 2107 | 238 48 912 909 Parts 140 | 25 5 53 57 Haulers Intercepted 6 | . 1 2 3 Recyclers Shooed 2 | 1 . . 1 Parts Field Recycled . | . . . . Retrieved Matter . | . . . . Parts Self-Destructed . | . . . . Prevented . | . . . . Kills | -11 -10 -9 -9 ------- Run | Yrd Mat Mat Sto Combat Hostiles Destroyed 35 | . . 15 20 Melee 1 | . . 1 . Guns 14 | . . 13 1 Cannons 15 | . . . 15 AOE 3 | . . . 3 Classes Destroyed 10 | 3 1 6 . Worker 1 | 1 . . . Tunneler 7 | 7 . . . Hauler 6 | . 1 2 3 Recycler 3 | 1 . 1 1 Operator 1 | . . 1 . Watcher 5 | . . 4 1 Swarmer 11 | . . 3 8 Grunt 7 | . . 5 2 Duelist 1 | . . 1 . Sentry 16 | . . 6 10 Best Kill Streak 6 | 5 1 6 6 Combat Bots Only 6 | . . 3 6 Max Kills in Single Turn 2 | 1 1 1 2 Gunslinging . | . . . . Exploded 2 | . . . 2 Melee 1 | . . 1 . Uniques/NPCs Destroyed . | . . . . Combat | -11 -10 -9 -9 -------- Run | Yrd Mat Mat Sto Hostile Shots Fired 221 | . . 92 129 Missed 50 | . . 26 24 Damage Taken 2342 | . . 907 1435 Core 413 | . . 137 276 Absorbed by Shields . | . . . . Regen/Repaired (Parts) 322 | . . 140 182 Core Remaining (%) 100 | 100 100 . . Volleys Fired 216 | 22 34 86 74 Largest 2 | 2 2 2 2 Hottest 136 | 70 100 100 136 Shots Fired 358 | 44 41 151 122 Gun 216 | 44 15 131 26 Cannon 71 | . . . 71 Launcher 3 | . . . 3 Special 68 | . 26 20 22 Kinetic 37 | 22 6 . 9 Thermal 279 | 22 33 117 107 Explosive 3 | . . . 3 Electromagnetic 39 | . 2 34 3 Robot Hit Streak 21 | 6 6 21 11 Robot Miss Streak 5 | 5 1 3 3 Penetration Max . | . . . . Secondary Targets . | . . . . Shots Hit Robots 194 | 22 13 91 68 Core Hits 93 | 15 3 39 36 Critical Kills . | . . . . Critical Parts Destroyed . | . . . . Critical Strikes 14 | 1 1 11 1 Burn 14 | 1 1 11 1 Melee Attacks 1 | . 1 . . Impact . | . . . . Slashing . | . . . . Piercing . | . . . . Sneak Attacks 1 | . 1 . . Combat Hostiles . | . . . . Follow-up Attacks . | . . . . Damage Inflicted 3249 | 247 119 1191 1692 Guns 1777 | 237 119 1187 234 Cannons 1029 | . . . 1029 Explosions 396 | . . . 396 Melee . | . . . . Ramming 36 | 10 . 4 22 Kinetic 284 | 114 43 . 127 Thermal 2167 | 123 63 844 1137 Explosive 396 | . . . 396 Electromagnetic 366 | . 13 343 10 Impact . | . . . . Slashing . | . . . . Piercing . | . . . . Highest Corruption . | . . . . Average Corruption . | . . . . Corruption Purged . | . . . . Corruption Blocked . | . . . . Overload Shots . | . . . . Overflow Damage 16 | . . . 16 Projectiles 13 | . . . 13 Explosions 3 | . . . 3 Melee . | . . . . Knockbacks . | . . . . Impact . | . . . . Kinetic . | . . . . Secondary . | . . . . Self-Inflicted Damage 160 | . . . 160 Shots 3 | . . . 3 Rammed 11 | . . . 11 Targets Rammed 17 | 4 . 2 11 Kicked 6 | 4 . 2 . Crushed . | . . . . Highest Temperature 327 | 100 60 237 327 Average Temperature 64 | 33 16 56 114 Received Heat Transfer 615 | . . 306 309 Effects 6 | . . . 6 Energy Bleed 2 | . . . 2 Interference 4 | . . . 4 Siege Activations . | . . . . Robots Corrupted . | . . . . Combat Hostiles . | . . . . Parts Fried 1 | . . 1 . Impact Corruptions . | . . . . Robots Melted 2 | . . 1 1 Combat Hostiles 2 | . . 1 1 Parts Melted 17 | 2 . 13 2 Heat Transferred 6438 | 444 259 3330 2405 Parts Sabotaged . | . . . . Parts Stolen . | . . . . Parts Stripped . | . . . . Power Chain Reactions . | . . . . Alert | -11 -10 -9 -9 ------- Run | Yrd Mat Mat Sto Peak Influence 378 | 45 21 223 378 Initial 93 | . . 7 93 Average 106 | 16 9 114 189 Maximum Alert Level 1 | . . 1 1 Low Security (%) 80 | 100 100 91 52 Level 1 19 | . . 8 47 Level 2 . | . . . . Level 3 . | . . . . Level 4 . | . . . . Level 5 . | . . . . High Security . | . . . . Max Security . | . . . . Squads Dispatched 3 | . 1 1 1 Investigation 1 | . 1 . . Extermination . | . . . . Reinforcement 1 | . . 1 . Assault . | . . . . Garrison 1 | . . . 1 Intercept . | . . . . Searches Triggered . | . . . . Construction Impeded . | . . . . Haulers Reinforced . | . . . . Active Scanning Responses . | . . . . Cargo Convoy Interrupts . | . . . . Stealth | -11 -10 -9 -9 --------- Run | Yrd Mat Mat Sto Distress Signals 4 | . . 2 2 Communications Jammed . | . . . . Distress Signals . | . . . . Times Spotted 55 | . 3 28 24 Peak Tracking Total 6 | . 1 4 6 Tactical Retreats 2 | . . 2 . Traps | -11 -10 -9 -9 ------- Run | Yrd Mat Mat Sto Traps Triggered . | . . . . Indirectly . | . . . . Trap Hack Attempts . | . . . . Triggered . | . . . . Disarmed 1 | . . 1 . Reprogrammed . | . . . . Reused . | . . . . Traps Extracted . | . . . . Installed . | . . . . Triggered . | . . . . Machines | -11 -10 -9 -9 ---------- Run | Yrd Mat Mat Sto Machines Disabled 6 | . . 1 5 Max in Single Turn 1 | . . 1 1 Machines Repaired . | . . . . Machines Dismantled 1 | . . . 1 Machines Sabotaged . | . . . . Overloaded Fab Kills . | . . . . Hacking | -11 -10 -9 -9 --------- Run | Yrd Mat Mat Sto Machines Accessed 14 | . 4 4 6 Terminals 10 | . 4 3 3 Fabricators . | . . . . Repair Stations 2 | . . 1 1 Recycling Units 2 | . . . 2 Scanalyzers . | . . . . Garrison Access . | . . . . Total Hacks 39 | . 9 12 18 Successful 22 | . 2 7 13 Failed 17 | . 7 5 5 Catastrophic 3 | . 1 1 1 Database Lockouts . | . . . . Manual 17 | . 7 6 4 Terminals 24 | . 9 8 7 Fabricators . | . . . . Repair Stations 10 | . . 4 6 Recycling Units 5 | . . . 5 Scanalyzers . | . . . . Garrison Access . | . . . . Terminal Hacks 7 | . 2 3 2 Terminal Index 3 | . 1 1 1 Disarm Traps 1 | . . 1 . Zone Layout 3 | . 1 1 1 Fabricator Hacks . | . . . . Repair Station Hacks 10 | . . 4 6 Scan Component 5 | . . 2 3 Repair 5 | . . 2 3 Recycling Unit Hacks 5 | . . . 5 Report Inventory 1 | . . . 1 Retrieve Matter 1 | . . . 1 Retrieve Components 3 | . . . 3 Scanalyzer . | . . . . Garrison Access Hacks . | . . . . Unauthorized Hacks . | . . . . Terminals . | . . . . Fabricators . | . . . . Repair Stations . | . . . . Recycling Units . | . . . . Scanalyzers . | . . . . Garrison Access . | . . . . Data Cores Recovered . | . . . . Used . | . . . . Hacking Detections 13 | . 4 4 5 Full Trace Events 2 | . 2 . . Feedback Events . | . . . . Feedback Blocked . | . . . . Robot Schematics Acquired . | . . . . Robots Built . | . . . . Authchips . | . . . . Time . | . . . . Total Robot Build Rating . | . . . . Part Schematics Acquired . | . . . . Parts Built . | . . . . Authchips . | . . . . Time . | . . . . Total Part Build Rating . | . . . . Parts Repaired 5 | . . 2 3 Time 136 | . . 52 84 Parts Recycled . | . . . . Recycled Matter . | . . . . Retrieved Matter . | . . . . Retrieved Components 10 | . . . 10 Parts Scanalyzed . | . . . . Part Schematics Acquired . | . . . . Parts Damaged . | . . . . Bothacking | -11 -10 -9 -9 ------------ Run | Yrd Mat Mat Sto Used RIF Installer . | . . . . Robots Hacked 1 | . 1 . . Non-combat 1 | . 1 . . Combat . | . . . . Robot Hacks Applied 1 | . 1 . . no_distress 1 | . 1 . . Relay Couplers Released . | . . . . Fabnet Peak Effective % . | . . . . Robots Rewired . | . . . . Allies Hacked . | . . . . Hacks Repelled . | . . . . Allies | -11 -10 -9 -9 -------- Run | Yrd Mat Mat Sto Total Allies . | . . . . Largest Group . | . . . . Highest-Rated Group . | . . . . Highest-Rated Ally . | . . . . Total Orders . | . . . . Ally Attacks . | . . . . Total Damage . | . . . . Kills . | . . . . Allies Corrupted . | . . . . Allies Melted . | . . . . Intel | -11 -10 -9 -9 ------- Run | Yrd Mat Mat Sto Robot Analysis Total . | . . . . Derelict Logs Recovered . | . . . . Drone Launches . | . . . . Drone Recoveries . | . . . . Exploration | -11 -10 -9 -9 ------------- Run | Yrd Mat Mat Sto Turns Passed 3449 | 416 719 1111 1203 Spaces Moved 1481 | 269 367 429 416 Core 2 | 2 . . . Treads 625 | . . 209 416 Legs 854 | 267 367 220 . Wheels . | . . . . Hover . | . . . . Flight . | . . . . Fastest Speed 50 | 50 120 120 160 Average Speed 137 | 119 120 142 160 Slowest Speed 240 | 120 120 190 240 Overloaded Moves . | . . . . Propulsion Burnouts . | . . . . Robots Hopped . | . . . . Cave-ins Triggered . | . . . . Exploration Rate (%) 33 | 9 43 29 53 Regions Visited 3 Branch Regions 1 Pre-discovered Areas . | . . . . Known Exits Taken . | . . . . Unknown Exits Taken 3 | 1 1 1 . Scrap Searched . | . . . . Spaces Dug 57 | . 26 19 12 Terrain Destroyed 87 | . 26 19 42 Melee . | . . . . Projectile 57 | . 26 19 12 AOE 30 | . . . 30 Terrain Rammed . | . . . . Walls Destroyed . | . . . . Machines Disabled . | . . . . Actions | -11 -10 -9 -9 --------- Run | Yrd Mat Mat Sto Total 2358 | 320 549 731 758 Wait 455 | 4 120 155 176 Move 1478 | 268 366 428 416 Hop . | . . . . Pick Up 58 | 11 8 22 17 Fast Attach 12 | 6 . 2 4 Attach 10 | 1 . 6 3 Detach . | . . . . Swap 66 | 2 14 21 29 Drop 34 | 2 6 9 17 Fire 216 | 22 34 86 74 Melee 1 | . 1 . . Ram . | . . . . Kick 6 | 4 . 2 . Crush 11 | . . . 11 Escape Stasis . | . . . . Rewire 2 | . . . 2 Trap . | . . . . Miscellaneous 9 | . . . 9 Route ------- -11/Scrapyard -10/Materials (discovered 2 exits: *Mat / [*Min]) -9/Materials (discovered 3 exits: [*Mat] / *Sto x2) -9/Storage (discovered 1 exit: [*Mat]) History --------- Turn | Location | Event 14 | -11/Scrapyard | Discovered new exit (range 15) 417 | -11/Scrapyard | Entered Materials 418 | -10/Materials | Build established: Mutant 705 | -10/Materials | Discovered new exit (range 5) 959 | -10/Materials | Discovered new exit (range 4) 1136 | -10/Materials | Entered another Materials area 1136 | -9/Materials | Evolved 2 slots: Propulsion x2 1449 | -9/Materials | Repaired Med. Laser 1476 | -9/Materials | Repaired Aluminum Leg 1863 | -9/Materials | Discovered new exit (range 11) 1956 | -9/Materials | Discovered new exit (range 9) 2198 | -9/Materials | Discovered new exit (range 8) 2247 | -9/Materials | Entered Storage 2745 | -9/Storage | Core integrity fell below 50% 2904 | -9/Storage | Build established: Scavenger-Mutant 2955 | -9/Storage | Repaired Shield Generator 2982 | -9/Storage | Repaired Lgt. Treads 3009 | -9/Storage | Repaired Lgt. Treads 3285 | -9/Storage | Discovered new exit (range 5) 3374 | -9/Storage | Garrison activated, responded to threat 3445 | -9/Storage | Core integrity fell below 20% 3450 | -9/Storage | Destroyed by Y-45 Defender with Heavy Assault Rifle Last Messages --------------- Destroyed Flight Unit. U-05 Engineer builds a Wall. Particle Cannon destroyed. S-10 Pest destroyed. Overheating: System interference. Lgt. Cannon temporarily disabled. Plasma Cutter destroyed. Slammed into Y-45 Defender. [Achievement: Let's See Who's Tougher] Lgt. Treads destroyed. Destroyed Lgt. Treads. Terminal disabled. The unstable cave ceiling collapses. U-05 Engineer lays Concrete. S-10 Pest destroyed. Lgt. Treads destroyed. Destroyed Lgt. Treads. G-34 Mercenary destroyed. U-05 Engineer lays Concrete. Y-45 Defender destroyed. Map ----- +----------------------------------------------------+ | | | | | | | | | | | | | | | | | | | | | | | | | | | ???????????????????????????????????#############?? | | ??????????????????????????????????? #?? | | ????????????????????"""???????????# """ """ #?? | | ????????????????##?#"R"???######### """ """ #?? | | ????????????????# ##" "#### + """ """ #?? | | ????????????????# # # #?? | | ????????????????# # #######+######?? | | ????????????????# # #?? | | ???????????????#" """ u < #?? | | ???????????????#T%""" #?? | | ???????????????#" "" ##+#########+######?? | | ????????????????# =%=[= % ###### ##????? | | ????????????????# %%gY@ [[ ##* ** ###???? | | ????????????????####+ ##*** #"##### | | ????????????????? t [ ######T####/ | | ???????????????# r ########""# | | ???????????????# ! ## ####[ #??????#### | | ???????????????# %= */%[ u ! #?????????# ! | | ???????????????# = [#! / ###???????# | | ???????????????# ?######### ##??????#% ! | | ???????????????# ?????? #??????# | | ???????????????# ######+??????? #??????# | | ??????????????????????????????? #??????#[ % | | ??????????????????????????????? ##########+# | | ???????????????????????????????"" """ + ^ = ! | | ???????????????????????????????"" """ #### ^ =!! | | ???????????????????????????????"" """ #??# "T" [ | | ??????????????????????????????? #??# | | ???????????????????????????????##+#####??# | | ?????????????????????????????#?# #?????# | | ????????????????????????????? ?# #?????# | | ?????????????????????????????? # #?????# ####### | | ?????????????????????????????? # #?????# #??#### | | ???????????????????????????????/ #?????# #??#""" | | ???????????????????????????????# #?????# #??#"R" | | ???????????????????????????????# #?????# #?##" " | | ????????########???????????????# #?????# #?# | +----------------------------------------------------+ Best States ------------- Heat Dissipation 38 Energy Generation 14 Energy Capacity 280 Matter Stores 300 Matter Capacity 300 Sight Range 16 Terrain Scan Range 16 Terrain Scan Density 10 Evasion (%) 55 Recoil Reduction 4 Offensive Hacking 10 Item Schematics ----------------- None Robot Schematics ------------------ None Fabricated ------------ Nothing Alien Tech Used ----------------- None Achievements -------------- Let's See Who's Tougher Challenges ------------ None Game ------ Seed ParticleGodFlightbrick Manual? 0 Play Time 01:01:38 Cumulative 5.5 hours Start 2024.04.02 @ 22:14:28 End 2024.04.02 @ 23:17:12 Sessions 1 Manual Loads 0 Difficulty Rogue Special Mode None Game No. 4 Rogue 4 Adventurer 0 Explorer 0 Win Type - Total 0 Types 0/0/0/0/0/0/0/0/0 Lore% 10 Gallery% 11 Achievement% 12 Wizard Run 0 Options --------- Layout 1 ASCII 0 Keyboard 0 Movement Mouse Keybinds 0 Fullscreen 1 Font 24/X11 Map View 50x35 Zoom Use 0% Tactical HUD 0 Map Filters NONE Filters NONE Steam 1 RUN: 0983364f-8f10-42b6-8587-8d53516ee669